[Event "*** Titled Tuesday Blitz"]
[Site "Chess.com"]
[Date "2020.04.28"]
[Round "7"]
[White "grunbergmihai"]
[Black "Skatchkov_V"]
[Result "1-0"]
[WhiteElo "2419"]
[BlackElo "2541"]
[TimeControl "180+1"]
[EndTime "11:19:49 PDT"]
[Termination "grunbergmihai won by resignation"]

1. Nf3 {[%clk 0:03:00.9]} 1... Nf6 {[%clk 0:02:58.4]} 2. c4 {[%clk 0:03:00.5]}
2... b6 {[%clk 0:02:55.7]} 3. g3 {[%clk 0:03:00.4]} 3... Bb7 {[%clk 0:02:55.8]}
4. Bg2 {[%clk 0:03:01.3]} 4... e6 {[%clk 0:02:56.4]} 5. O-O {[%clk 0:03:01.5]}
5... Be7 {[%clk 0:02:57.2]} 6. Nc3 {[%clk 0:03:01.1]} 6... O-O {[%clk
0:02:57.3]} 7. d4 {[%clk 0:03:00.3]} 7... Ne4 {[%clk 0:02:57.2]} 8. Qc2 {[%clk
0:03:00.3]} 8... Nxc3 {[%clk 0:02:57.3]} 9. Qxc3 {[%clk 0:03:00.2]} 9... d6
{[%clk 0:02:56.7]} 10. Rd1 {[%clk 0:02:58.1]} 10... Nd7 {[%clk 0:02:56.9]} 11.
b3 {[%clk 0:02:55.5]} 11... c5 {[%clk 0:02:55.9]} 12. Bb2 {[%clk 0:02:53.7]}
12... Bf6 {[%clk 0:02:56.1]} 13. Qd3 {[%clk 0:02:52.8]} 13... Qc7 {[%clk
0:02:48.4]} 14. Rd2 {[%clk 0:02:47.5]} 14... cxd4 {[%clk 0:02:47.4]} 15. Bxd4
{[%clk 0:02:47.2]} 15... Rad8 {[%clk 0:02:46.6]} 16. Rad1 {[%clk 0:02:42.4]}
16... Nc5 {[%clk 0:02:38.3]} 17. Qe3 {[%clk 0:02:33.2]} 17... Ne4 {[%clk
0:01:28.2]} 18. Bxf6 {[%clk 0:02:20.2]} 18... Nxf6 {[%clk 0:01:09.5]} 19. Ng5
{[%clk 0:02:08.5]} 19... Bxg2 {[%clk 0:01:03.2]} 20. Kxg2 {[%clk 0:02:09.4]}
20... h6 {[%clk 0:01:02.2]} 21. Nf3 {[%clk 0:02:03.8]} 21... Rd7 {[%clk
0:00:58.9]} 22. Qf4 {[%clk 0:01:58.4]} 22... Rfd8 {[%clk 0:00:57.4]} 23. e4
{[%clk 0:01:56.8]} 23... Qb7 {[%clk 0:00:54.7]} 24. Re1 {[%clk 0:01:54.8]} 24...
d5 {[%clk 0:00:46.1]} 25. cxd5 {[%clk 0:01:53.5]} 25... exd5 {[%clk 0:00:47]}
26. exd5 {[%clk 0:01:46.9]} 26... Rxd5 {[%clk 0:00:44.6]} 27. Rxd5 {[%clk
0:01:43]} 27... Qxd5 {[%clk 0:00:42.9]} 28. Qe5 {[%clk 0:01:36.4]} 28... Qc6
{[%clk 0:00:41.3]} 29. Qf4 {[%clk 0:01:22.1]} 29... b5 {[%clk 0:00:26.9]} 30.
Kg1 {[%clk 0:01:18.7]} 30... a6 {[%clk 0:00:24.5]} 31. h4 {[%clk 0:01:17.2]}
31... Qc3 {[%clk 0:00:20.9]} 32. Qe3 {[%clk 0:01:07.9]} 32... Qb2 {[%clk
0:00:17.8]} 33. Re2 {[%clk 0:01:04.9]} 33... Qb1+ {[%clk 0:00:15.1]} 34. Kg2
{[%clk 0:01:03.8]} 34... Rd1 {[%clk 0:00:14.8]} 35. a4 {[%clk 0:00:41.9]} 35...
Rh1 {[%clk 0:00:14.3]} 36. Re1 {[%clk 0:00:39.1]} 36... Rxe1 {[%clk 0:00:13.4]}
37. Nxe1 {[%clk 0:00:38.8]} 37... b4 {[%clk 0:00:12.4]} 38. Nf3 {[%clk
0:00:35.2]} 38... a5 {[%clk 0:00:12.8]} 39. Ne5 {[%clk 0:00:31.2]} 39... Nd5
{[%clk 0:00:12.2]} 40. Qf3 {[%clk 0:00:27.5]} 40... Nf6 {[%clk 0:00:12.3]} 41.
Qa8+ {[%clk 0:00:26.9]} 41... Kh7 {[%clk 0:00:12.5]} 42. Qxa5 {[%clk 0:00:27.8]}
42... Qxb3 {[%clk 0:00:12.8]} 43. Qa7 {[%clk 0:00:21.1]} 43... Qd5+ {[%clk
0:00:12.6]} 44. Nf3 {[%clk 0:00:20.2]} 44... b3 {[%clk 0:00:13.1]} 45. Qb6
{[%clk 0:00:19.7]} 45... Ne4 {[%clk 0:00:12.7]} 46. Kg1 {[%clk 0:00:16.6]} 46...
Nc5 {[%clk 0:00:11.4]} 47. a5 {[%clk 0:00:15.6]} 47... Qxf3 {[%clk 0:00:10.7]}
48. Qxc5 {[%clk 0:00:15.1]} 48... b2 {[%clk 0:00:10.8]} 49. Qc2+ {[%clk
0:00:14.6]} 49... g6 {[%clk 0:00:10.6]} 50. Qxb2 {[%clk 0:00:14.3]} 50... Qd1+
{[%clk 0:00:11.1]} 51. Kh2 {[%clk 0:00:13]} 51... Qf1 {[%clk 0:00:11.3]} 52. Qa2
{[%clk 0:00:12]} 52... Qa6 {[%clk 0:00:08.5]} 53. Qxf7+ {[%clk 0:00:11.1]} 53...
Kh8 {[%clk 0:00:09.3]} 54. Qf8+ {[%clk 0:00:10.7]} 54... Kh7 {[%clk 0:00:09.7]}
55. Qc5 {[%clk 0:00:11]} 55... h5 {[%clk 0:00:08.9]} 56. Qb6 {[%clk 0:00:10.5]}
56... Qf1 {[%clk 0:00:08.8]} 57. a6 {[%clk 0:00:10.1]} 57... Kh6 {[%clk
0:00:09.2]} 58. a7 {[%clk 0:00:09.3]} 58... Qa1 {[%clk 0:00:09.8]} 59. Qe3+
{[%clk 0:00:08.5]} 59... Kh7 {[%clk 0:00:09.8]} 60. Qe7+ {[%clk 0:00:07.7]}
60... Kh6 {[%clk 0:00:10]} 61. Qf8+ {[%clk 0:00:07.5]} 61... Kh7 {[%clk
0:00:10.1]} 62. a8=Q {[%clk 0:00:07.6]} 1-0

[Event "*** Titled Tuesday Blitz"]
[Site "Chess.com"]
[Date "2020.04.28"]
[Round "7"]
[White "tacticthunder"]
[Black "Riptide27"]
[Result "0-1"]
[WhiteElo "2653"]
[BlackElo "2504"]
[TimeControl "180+1"]
[EndTime "11:19:51 PDT"]
[Termination "Riptide27 won by checkmate"]

1. e4 {[%clk 0:03:00.9]} 1... e5 {[%clk 0:02:59.1]} 2. Nf3 {[%clk 0:03:00.7]}
2... Nc6 {[%clk 0:02:59]} 3. Bc4 {[%clk 0:02:59.7]} 3... Nf6 {[%clk 0:02:58]} 4.
d3 {[%clk 0:02:51.1]} 4... Be7 {[%clk 0:02:57.3]} 5. Nc3 {[%clk 0:02:49.5]} 5...
d6 {[%clk 0:02:50.3]} 6. h3 {[%clk 0:02:46.9]} 6... Na5 {[%clk 0:02:46.9]} 7.
Bb3 {[%clk 0:02:40]} 7... c5 {[%clk 0:02:40.1]} 8. O-O {[%clk 0:02:38.5]} 8...
O-O {[%clk 0:02:38.7]} 9. Nd2 {[%clk 0:02:35.2]} 9... Nxb3 {[%clk 0:02:34]} 10.
axb3 {[%clk 0:02:36.1]} 10... d5 {[%clk 0:02:31.7]} 11. exd5 {[%clk 0:02:34.5]}
11... Nxd5 {[%clk 0:02:30.3]} 12. Nc4 {[%clk 0:02:31.1]} 12... Nxc3 {[%clk
0:02:27.7]} 13. bxc3 {[%clk 0:02:32]} 13... f6 {[%clk 0:02:16.9]} 14. Qf3 {[%clk
0:02:24.7]} 14... Qc7 {[%clk 0:02:07]} 15. Ne3 {[%clk 0:02:24.3]} 15... Be6
{[%clk 0:02:04.9]} 16. c4 {[%clk 0:02:23.7]} 16... b6 {[%clk 0:01:58.3]} 17. Nd5
{[%clk 0:02:14]} 17... Qd7 {[%clk 0:01:53]} 18. Bb2 {[%clk 0:02:10.3]} 18...
Bxd5 {[%clk 0:01:52.1]} 19. Qxd5+ {[%clk 0:02:04.7]} 19... Qxd5 {[%clk
0:01:51.2]} 20. cxd5 {[%clk 0:02:05.6]} 20... Bd6 {[%clk 0:01:50.7]} 21. Ra6
{[%clk 0:02:04.9]} 21... Rf7 {[%clk 0:01:47.2]} 22. Rfa1 {[%clk 0:01:59.6]}
22... Rb7 {[%clk 0:01:46.1]} 23. g4 {[%clk 0:01:56]} 23... Kf7 {[%clk
0:01:40.9]} 24. Kf1 {[%clk 0:01:53.3]} 24... Ke7 {[%clk 0:01:40.8]} 25. Ke2
{[%clk 0:01:53.6]} 25... Kd7 {[%clk 0:01:35.2]} 26. f3 {[%clk 0:01:43.5]} 26...
Bc7 {[%clk 0:01:32.6]} 27. Ke3 {[%clk 0:01:41.5]} 27... b5 {[%clk 0:01:31.2]}
28. Ke4 {[%clk 0:01:36.5]} 28... Bb6 {[%clk 0:01:26.8]} 29. c4 {[%clk
0:01:27.6]} 29... bxc4 {[%clk 0:01:16.3]} 30. bxc4 {[%clk 0:01:27.2]} 30... Re8
{[%clk 0:01:00.3]} 31. Bc3 {[%clk 0:01:23.8]} 31... g6 {[%clk 0:00:58.5]} 32.
Ba5 {[%clk 0:01:06.8]} 32... Kc7 {[%clk 0:00:54.2]} 33. Bxb6+ {[%clk 0:00:42.3]}
33... axb6 {[%clk 0:00:55.1]} 34. Ra7 {[%clk 0:00:42.4]} 34... Rb8 {[%clk
0:00:51.1]} 35. Ra8 {[%clk 0:00:39.1]} 35... b5 {[%clk 0:00:47.3]} 36. cxb5
{[%clk 0:00:32.1]} 36... Rxb5 {[%clk 0:00:45.7]} 37. R1a7+ {[%clk 0:00:21]}
37... R8b7 {[%clk 0:00:41.8]} 38. Rxb7+ {[%clk 0:00:17.8]} 38... Rxb7 {[%clk
0:00:40.3]} 39. Rf8 {[%clk 0:00:17.2]} 39... Rb4+ {[%clk 0:00:38.4]} 40. Ke3
{[%clk 0:00:17]} 40... Rf4 {[%clk 0:00:32.9]} 41. Rf7+ {[%clk 0:00:16.6]} 41...
Kd6 {[%clk 0:00:32.6]} 42. Rxh7 {[%clk 0:00:17.5]} 42... Kxd5 {[%clk 0:00:32.9]}
43. h4 {[%clk 0:00:18.1]} 43... f5 {[%clk 0:00:30.5]} 44. g5 {[%clk 0:00:17.3]}
44... c4 {[%clk 0:00:29.5]} 45. dxc4+ {[%clk 0:00:06.7]} 45... Rxc4 {[%clk
0:00:30.4]} 46. Rh6 {[%clk 0:00:05.5]} 46... Rc2 {[%clk 0:00:29.8]} 47. Rxg6
{[%clk 0:00:04.8]} 47... f4+ {[%clk 0:00:29.5]} 48. Kd3 {[%clk 0:00:04.8]} 48...
Rf2 {[%clk 0:00:29.8]} 49. h5 {[%clk 0:00:05]} 49... Rxf3+ {[%clk 0:00:29.8]}
50. Ke2 {[%clk 0:00:05.9]} 50... Rh3 {[%clk 0:00:29.3]} 51. h6 {[%clk
0:00:06.8]} 51... e4 {[%clk 0:00:28.7]} 52. Rg7 {[%clk 0:00:07]} 52... e3 {[%clk
0:00:28.5]} 53. h7 {[%clk 0:00:07.3]} 53... Ke4 {[%clk 0:00:28.1]} 54. Re7+
{[%clk 0:00:07.5]} 54... Kf5 {[%clk 0:00:28]} 55. Rg7 {[%clk 0:00:08]} 55... Ke4
{[%clk 0:00:26.8]} 56. Re7+ {[%clk 0:00:07.6]} 56... Kf5 {[%clk 0:00:26.6]} 57.
Rg7 {[%clk 0:00:04.9]} 57... Rh2+ {[%clk 0:00:26.3]} 58. Kd3 {[%clk 0:00:02.8]}
58... e2 {[%clk 0:00:23.6]} 59. Kd2 {[%clk 0:00:03.7]} 59... f3 {[%clk
0:00:23.1]} 60. g6 {[%clk 0:00:03.8]} 60... Rh1 {[%clk 0:00:21.9]} 61. Rf7+
{[%clk 0:00:03.5]} 61... Kxg6 {[%clk 0:00:20.8]} 62. Re7 {[%clk 0:00:03.3]}
62... Rxh7 {[%clk 0:00:19.2]} 63. Rxh7 {[%clk 0:00:02.4]} 63... Kxh7 {[%clk
0:00:20.1]} 64. Ke1 {[%clk 0:00:03]} 64... Kg6 {[%clk 0:00:20.4]} 65. Kf2 {[%clk
0:00:03.9]} 65... Kf5 {[%clk 0:00:21.3]} 66. Kxf3 {[%clk 0:00:04.1]} 66... e1=Q
{[%clk 0:00:19.2]} 67. Kg2 {[%clk 0:00:04]} 67... Qe4+ {[%clk 0:00:19.5]} 68.
Kf2 {[%clk 0:00:03.8]} 68... Qc2+ {[%clk 0:00:19]} 69. Kg1 {[%clk 0:00:04.7]}
69... Kf4 {[%clk 0:00:17]} 70. Kh1 {[%clk 0:00:05.6]} 70... Kf3 {[%clk
0:00:16.9]} 71. Kg1 {[%clk 0:00:06.5]} 71... Qg2# {[%clk 0:00:16.4]} 0-1

[Event "*** Titled Tuesday Blitz"]
[Site "Chess.com"]
[Date "2020.04.28"]
[Round "7"]
[White "BakaPG"]
[Black "Akhayan"]
[Result "0-1"]
[WhiteElo "2668"]
[BlackElo "2307"]
[TimeControl "180+1"]
[EndTime "11:19:53 PDT"]
[Termination "Akhayan won on time"]

1. e4 {[%clk 0:03:00.9]} 1... e6 {[%clk 0:02:59.4]} 2. d3 {[%clk 0:02:59.7]}
2... d5 {[%clk 0:02:59.3]} 3. Nd2 {[%clk 0:03:00.3]} 3... Nf6 {[%clk 0:02:59.3]}
4. Ngf3 {[%clk 0:03:00.4]} 4... Be7 {[%clk 0:02:59.1]} 5. g3 {[%clk 0:03:00]}
5... O-O {[%clk 0:02:59]} 6. Bg2 {[%clk 0:03:00.3]} 6... c5 {[%clk 0:02:59.5]}
7. O-O {[%clk 0:03:00.2]} 7... Nc6 {[%clk 0:03:00.1]} 8. e5 {[%clk 0:03:00.5]}
8... Nd7 {[%clk 0:02:59.7]} 9. Re1 {[%clk 0:03:01.2]} 9... a5 {[%clk 0:02:50.3]}
10. h4 {[%clk 0:02:59.5]} 10... Qc7 {[%clk 0:02:44.3]} 11. Qe2 {[%clk
0:02:58.5]} 11... b5 {[%clk 0:02:42.4]} 12. Nf1 {[%clk 0:02:58]} 12... Nd4
{[%clk 0:02:36.3]} 13. Nxd4 {[%clk 0:02:57]} 13... cxd4 {[%clk 0:02:36.5]} 14.
Bf4 {[%clk 0:02:55.7]} 14... Bb7 {[%clk 0:02:31.3]} 15. Rac1 {[%clk 0:02:53.7]}
15... a4 {[%clk 0:02:27.6]} 16. c3 {[%clk 0:02:39.8]} 16... dxc3 {[%clk
0:02:22.5]} 17. bxc3 {[%clk 0:02:39.4]} 17... Qb6 {[%clk 0:02:09]} 18. Ne3
{[%clk 0:02:30.7]} 18... b4 {[%clk 0:02:06.4]} 19. c4 {[%clk 0:02:29]} 19... d4
{[%clk 0:02:03.1]} 20. Bxb7 {[%clk 0:02:15.9]} 20... Qxb7 {[%clk 0:01:58.4]} 21.
Ng2 {[%clk 0:02:16.2]} 21... b3 {[%clk 0:01:54.5]} 22. Rb1 {[%clk 0:02:09.5]}
22... Rfb8 {[%clk 0:01:41.4]} 23. h5 {[%clk 0:02:04.6]} 23... Qc6 {[%clk
0:01:04.2]} 24. h6 {[%clk 0:01:54.2]} 24... g6 {[%clk 0:01:04.2]} 25. axb3
{[%clk 0:01:45]} 25... axb3 {[%clk 0:01:03.4]} 26. Rb2 {[%clk 0:01:31.3]} 26...
Ba3 {[%clk 0:00:54.9]} 27. Rbb1 {[%clk 0:01:29]} 27... Be7 {[%clk 0:00:47.3]}
28. Red1 {[%clk 0:01:28.8]} 28... Ra2 {[%clk 0:00:45.5]} 29. Qg4 {[%clk
0:01:27.2]} 29... Nc5 {[%clk 0:00:34.3]} 30. Ne1 {[%clk 0:01:18.7]} 30... b2
{[%clk 0:00:33.7]} 31. Bg5 {[%clk 0:01:17.5]} 31... Bf8 {[%clk 0:00:32.7]} 32.
Qxd4 {[%clk 0:01:14]} 32... Na4 {[%clk 0:00:28.8]} 33. Nc2 {[%clk 0:01:01.2]}
33... Bc5 {[%clk 0:00:27.1]} 34. Qf4 {[%clk 0:01:00.3]} 34... Nc3 {[%clk
0:00:24.8]} 35. d4 {[%clk 0:00:46.3]} 35... Ne2+ {[%clk 0:00:24.1]} 36. Kh2
{[%clk 0:00:40.8]} 36... Nxf4 {[%clk 0:00:23.9]} 37. Bxf4 {[%clk 0:00:39.5]}
37... Bf8 {[%clk 0:00:22.7]} 38. d5 {[%clk 0:00:39.4]} 38... Qxc4 {[%clk
0:00:22.2]} 39. Ne3 {[%clk 0:00:39.2]} 39... Qe2 {[%clk 0:00:21.7]} 40. Kg2
{[%clk 0:00:38]} 40... Ra1 {[%clk 0:00:21.8]} 41. Rxa1 {[%clk 0:00:35.1]} 41...
bxa1=Q {[%clk 0:00:21.3]} 42. Rxa1 {[%clk 0:00:34.7]} 42... Rb2 {[%clk
0:00:20.9]} 43. Rf1 {[%clk 0:00:33.9]} 43... exd5 {[%clk 0:00:21.1]} 44. Nd1
{[%clk 0:00:28.4]} 44... Ra2 {[%clk 0:00:18.6]} 45. Nc3 {[%clk 0:00:27.1]} 45...
Qc2 {[%clk 0:00:18]} 46. Nxa2 {[%clk 0:00:25.1]} 46... Qxa2 {[%clk 0:00:18.5]}
47. Be3 {[%clk 0:00:25.1]} 47... d4 {[%clk 0:00:17.6]} 48. Bg5 {[%clk
0:00:22.5]} 48... d3 {[%clk 0:00:17.6]} 49. Rd1 {[%clk 0:00:17.7]} 49... Qd5+
{[%clk 0:00:18]} 50. f3 {[%clk 0:00:16.8]} 50... Bb4 {[%clk 0:00:17.4]} 51. Bf4
{[%clk 0:00:15.2]} 51... d2 {[%clk 0:00:17.3]} 52. Kf2 {[%clk 0:00:14.4]} 52...
Qd3 {[%clk 0:00:17.2]} 53. Be3 {[%clk 0:00:13.5]} 53... Ba5 {[%clk 0:00:16.4]}
54. f4 {[%clk 0:00:12.6]} 54... Kf8 {[%clk 0:00:15.4]} 55. Kf3 {[%clk
0:00:11.7]} 55... Ke8 {[%clk 0:00:15.4]} 56. Kf2 {[%clk 0:00:11.8]} 56... Qd5
{[%clk 0:00:15.3]} 57. Ke2 {[%clk 0:00:11.1]} 57... Qc4+ {[%clk 0:00:14.6]} 58.
Kf2 {[%clk 0:00:10.8]} 58... Qd3 {[%clk 0:00:14.7]} 59. g4 {[%clk 0:00:10]}
59... Bc3 {[%clk 0:00:15]} 60. g5 {[%clk 0:00:08.4]} 60... Bd4 {[%clk 0:00:15]}
61. Bxd4 {[%clk 0:00:08.3]} 61... Qxd4+ {[%clk 0:00:15.2]} 62. Kf3 {[%clk
0:00:08.7]} 62... Qd3+ {[%clk 0:00:15]} 63. Kf2 {[%clk 0:00:08.8]} 63... Ke7
{[%clk 0:00:15]} 64. f5 {[%clk 0:00:06.7]} 64... gxf5 {[%clk 0:00:14.4]} 65. e6
{[%clk 0:00:06.3]} 65... Kxe6 {[%clk 0:00:14.5]} 66. g6 {[%clk 0:00:06.5]} 66...
fxg6 {[%clk 0:00:13.8]} 67. Kg2 {[%clk 0:00:03.1]} 67... f4 {[%clk 0:00:13.8]}
68. Kh2 {[%clk 0:00:02.8]} 68... Qg3+ {[%clk 0:00:13.4]} 69. Kh1 {[%clk
0:00:02.6]} 69... Qf3+ {[%clk 0:00:13.6]} 70. Kh2 {[%clk 0:00:02.7]} 70... Qxd1
{[%clk 0:00:12.5]} 71. Kh3 {[%clk 0:00:02.2]} 71... Qf3+ {[%clk 0:00:12.2]} 0-1

[Event "*** Titled Tuesday Blitz"]
[Site "Chess.com"]
[Date "2020.04.28"]
[Round "7"]
[White "korkmaz16"]
[Black "KrakenBeast"]
[Result "0-1"]
[WhiteElo "2275"]
[BlackElo "2422"]
[TimeControl "180+1"]
[EndTime "11:19:54 PDT"]
[Termination "KrakenBeast won by resignation"]

1. e4 {[%clk 0:03:00.9]} 1... c5 {[%clk 0:02:59]} 2. Nc3 {[%clk 0:02:59.7]} 2...
e6 {[%clk 0:02:56.7]} 3. f4 {[%clk 0:02:59.6]} 3... Nc6 {[%clk 0:02:56.5]} 4.
Nf3 {[%clk 0:02:59.1]} 4... g6 {[%clk 0:02:57.1]} 5. Bb5 {[%clk 0:02:57.3]} 5...
Bg7 {[%clk 0:02:56.8]} 6. Bxc6 {[%clk 0:02:56.8]} 6... dxc6 {[%clk 0:02:56.7]}
7. O-O {[%clk 0:02:56.8]} 7... Ne7 {[%clk 0:02:57]} 8. d3 {[%clk 0:02:56.9]}
8... b6 {[%clk 0:02:57.4]} 9. Qe1 {[%clk 0:02:57]} 9... Ba6 {[%clk 0:02:57.6]}
10. f5 {[%clk 0:02:30.5]} 10... gxf5 {[%clk 0:02:52.7]} 11. Qg3 {[%clk
0:01:59.3]} 11... Rg8 {[%clk 0:02:41.7]} 12. Qh3 {[%clk 0:01:52.8]} 12... Qd7
{[%clk 0:02:34.9]} 13. Bg5 {[%clk 0:01:22.6]} 13... O-O-O {[%clk 0:02:32.4]} 14.
exf5 {[%clk 0:01:18.8]} 14... exf5 {[%clk 0:02:19]} 15. Bxe7 {[%clk 0:01:16.4]}
15... Qxe7 {[%clk 0:02:18.4]} 16. Qxf5+ {[%clk 0:01:16.3]} 16... Kb8 {[%clk
0:02:18.9]} 17. Rae1 {[%clk 0:01:14.7]} 17... Qc7 {[%clk 0:02:16.4]} 18. Ne5
{[%clk 0:01:14.3]} 18... Bc8 {[%clk 0:02:12.6]} 19. Qe4 {[%clk 0:01:08.9]} 19...
Bxe5 {[%clk 0:02:04.5]} 20. Qxe5 {[%clk 0:01:07.9]} 20... Be6 {[%clk 0:02:03.6]}
21. Qxc7+ {[%clk 0:01:04]} 21... Kxc7 {[%clk 0:02:04.5]} 22. Ne4 {[%clk
0:01:04.4]} 22... c4 {[%clk 0:02:01.1]} 23. dxc4 {[%clk 0:00:59.5]} 23... Bxc4
{[%clk 0:02:00.5]} 24. Rf2 {[%clk 0:00:59.8]} 24... Be6 {[%clk 0:01:59.9]} 25.
h4 {[%clk 0:00:53.8]} 25... Rg4 {[%clk 0:01:55.9]} 26. Ng5 {[%clk 0:00:46]}
26... Bd5 {[%clk 0:01:21.5]} 27. Nxf7 {[%clk 0:00:39.7]} 27... Rf8 {[%clk
0:01:09.3]} 28. Re7+ {[%clk 0:00:36.1]} 28... Kb8 {[%clk 0:01:09.5]} 29. h5
{[%clk 0:00:28.8]} 29... Rfg8 {[%clk 0:01:03]} 30. Ree2 {[%clk 0:00:22.5]} 30...
Rh4 {[%clk 0:00:50.6]} 31. h6 {[%clk 0:00:18.6]} 31... Rf8 {[%clk 0:00:45]} 32.
Re7 {[%clk 0:00:16.2]} 32... a5 {[%clk 0:00:31.1]} 33. b3 {[%clk 0:00:15.8]}
33... a4 {[%clk 0:00:29.1]} 34. c4 {[%clk 0:00:15.2]} 34... Bxf7 {[%clk
0:00:28.8]} 35. Rexf7 {[%clk 0:00:12.6]} 35... Rxf7 {[%clk 0:00:29.2]} 36. Rxf7
{[%clk 0:00:12.8]} 36... axb3 {[%clk 0:00:29.6]} 37. axb3 {[%clk 0:00:11.5]}
37... Rxh6 {[%clk 0:00:30]} 38. Kf2 {[%clk 0:00:11]} 38... Rh1 {[%clk
0:00:29.5]} 39. Rg7 {[%clk 0:00:10.3]} 39... h5 {[%clk 0:00:29.3]} 40. Kg3
{[%clk 0:00:10.7]} 40... Rb1 {[%clk 0:00:28]} 41. Kh4 {[%clk 0:00:09.7]} 41...
Rxb3 {[%clk 0:00:28.2]} 42. Kxh5 {[%clk 0:00:09.2]} 42... Rc3 {[%clk 0:00:28.8]}
43. Rg4 {[%clk 0:00:08.3]} 43... Kc7 {[%clk 0:00:29.3]} 44. Rf4 {[%clk
0:00:08.4]} 44... Kd6 {[%clk 0:00:28.6]} 45. g4 {[%clk 0:00:08.7]} 45... Ke5
{[%clk 0:00:29.2]} 46. Rf5+ {[%clk 0:00:09.2]} 46... Ke6 {[%clk 0:00:29.5]} 47.
Rf4 {[%clk 0:00:09.3]} 47... Ke5 {[%clk 0:00:29.8]} 48. Rf5+ {[%clk 0:00:09.8]}
48... Ke4 {[%clk 0:00:30.5]} 49. Rf6 {[%clk 0:00:07.4]} 49... Rxc4 {[%clk
0:00:31]} 50. g5 {[%clk 0:00:05.8]} 50... Ke5 {[%clk 0:00:31.5]} 51. Rf8 {[%clk
0:00:04.8]} 51... Rc1 {[%clk 0:00:31]} 52. g6 {[%clk 0:00:05.2]} 52... Rh1+
{[%clk 0:00:30.9]} 53. Kg5 {[%clk 0:00:05.3]} 53... Rg1+ {[%clk 0:00:28.3]} 54.
Kh5 {[%clk 0:00:05.3]} 54... c5 {[%clk 0:00:28.4]} 55. Kh6 {[%clk 0:00:03.8]}
55... Rh1+ {[%clk 0:00:24.7]} 56. Kg5 {[%clk 0:00:03.5]} 56... b5 {[%clk
0:00:24.5]} 57. g7 {[%clk 0:00:03.4]} 57... Rg1+ {[%clk 0:00:24.2]} 58. Kh6
{[%clk 0:00:04.3]} 58... b4 {[%clk 0:00:21.7]} 59. g8=Q {[%clk 0:00:04.3]} 59...
Rxg8 {[%clk 0:00:21.9]} 60. Rxg8 {[%clk 0:00:05.2]} 60... c4 {[%clk 0:00:19.8]}
61. Rb8 {[%clk 0:00:06.1]} 61... b3 {[%clk 0:00:19.7]} 62. Re8+ {[%clk 0:00:07]}
62... Kd4 {[%clk 0:00:20]} 63. Kg5 {[%clk 0:00:07.3]} 63... b2 {[%clk
0:00:20.1]} 64. Rd8+ {[%clk 0:00:08.2]} 64... Kc3 {[%clk 0:00:20]} 65. Rb8
{[%clk 0:00:09]} 65... Kc2 {[%clk 0:00:20.3]} 66. Kf4 {[%clk 0:00:09.6]} 66...
c3 {[%clk 0:00:20.3]} 67. Ke3 {[%clk 0:00:10.3]} 67... b1=Q {[%clk 0:00:20.6]}
68. Rxb1 {[%clk 0:00:10.4]} 68... Kxb1 {[%clk 0:00:21.5]} 69. Kd3 {[%clk
0:00:11.1]} 69... c2 {[%clk 0:00:22.4]} 0-1